Workbook

Sheet 收入支出决算总表
A1: 收入支出决算总表
D2: 公开01表
A3: 公开部门：重庆市江津区经济和信息化委员会 | D3: 单位：万元
A4: 收入 | C4: 支出
A5: 项目 | B5: 决算数 | C5: 项目 | D5: 决算数
A6: 一、财政拨款收入 | B6: 29,646.09 | C6: 一、一般公共服务支出
A7: 二、上级补助收入 | C7: 二、外交支出
A8: 三、事业收入 | C8: 三、国防支出
A9: 四、经营收入 | C9: 四、公共安全支出
A10: 五、附属单位上缴收入 | C10: 五、教育支出 | D10: 5.42
A11: 六、其他收入 | C11: 六、科学技术支出 | D11: 5,253.06
C12: 七、文化旅游体育与传媒支出
C13: 八、社会保障和就业支出 | D13: 643.27
C14: 九、卫生健康支出 | D14: 883.70
C15: 十、节能环保支出
C16: 十一、城乡社区支出
C17: 十二、农林水支出
C18: 十三、交通运输支出
C19: 十四、资源勘探信息等支出 | D19: 23,746.61
C20: 十五、商业服务业等支出
C21: 十六、金融支出 | D21: 35.00
C22: 十七、援助其他地区支出 | D22: 500.00
C23: 十八、自然资源海洋气象等支出
C24: 十九、住房保障支出 | D24: 82.49
C25: 二十、粮油物资储备支出
C26: 二十一、国有资本经营预算支出
C27: 二十二、灾害防治及应急管理支出
C28: 二十三、其他支出
C29: 二十四、债务还本支出
C30: 二十五、债务付息支出
C31: 二十六、抗疫特别国债安排的支出
A32: 本年收入合计 | C32: 本年支出合计 | D32: 31,149.55
A33: 用事业基金弥补收支差额 | C33: 结余分配
A34: 年初结转和结余 | B34: 2,342.30 | C34: 年末结转和结余 | D34: 838.84
A35: 总计 | B35: 31,988.39 | C35: 总计 | D35: 31,988.39
A36: 备注：本表反映部门本年度的总收支和年末结转结余等情况。

Sheet 收入决算表
A1: 收入决算表
J2: 公开02表
A3: 公开部门：重庆市江津区经济和信息化委员会 | J3: 单位：万元
A4: 项目 | C4: 本年收入合计 | D4: 财政拨款收入 | E4: 上级补助收入 | F4: 事业收入 | H4: 经营收入 | I4: 附属单位上缴收入 | J4: 其他收入
A5: 功能分类科目编码 | B5: 项目(按“项”级功能分类科目) | J5: 小计
F6: 小计 | G6: 其中：教育收费
A8: 合计 | C8: =D8 -> 29,646.09 | D8: =D9+D12+D18+D29+D37+D52+D55+D58 -> 29,646.09
A9: 205 | B9: 教育支出 | C9: =D9 -> 5.42 | D9: =D10 -> 5.42
A10: 20508 | B10: 进修及培训 | C10: 5.42 | D10: =D11 -> 5.42
A11: 2050803 | B11: 培训支出 | C11: 5.42 | D11: 5.42
A12: 206 | B12: 科学技术支出 | C12: 5,253.06 | D12: =D13+D15 -> 5,253.06
A13: 20603 | B13: 应用研究 | C13: 1,100.00 | D13: =D14 -> 1,100.00
A14: 2060399 | B14: 其他应用研究支出 | C14: 1,100.00 | D14: 1,100.00
A15: 20604 | B15: 技术研究与开发 | C15: 4,153.06 | D15: =D16+D17 -> 4,153.06
A16: 2060404 | B16: 科技成果转化与扩散 | C16: 1,717.00 | D16: 1,717.00
A17: 2060499 | B17: 其他技术研究与开发支出 | C17: 2,436.06 | D17: 2,436.06
A18: 208 | B18: 社会保障和就业支出 | C18: 643.28 | D18: =D19+D23+D25+D27 -> 643.28
A19: 20805 | B19: 行政事业单位养老支出 | C19: 258.65 | D19: =D20+D21+D22 -> 258.65
A20: 2080505 | B20: 机关事业单位基本养老保险缴费支出 | C20: 84.57 | D20: 84.57
A21: 2080506 | B21: 机关事业单位职业年金缴费支出 | C21: 48.41 | D21: 48.41
A22: 2080599 | B22: 其他行政事业单位养老支出 | C22: 125.67 | D22: 125.67
A23: 20808 | B23: 抚恤 | C23: 97.99 | D23: =D24 -> 97.99
A24: 2080803 | B24: 在乡复员、退伍军人生活补助 | C24: 97.99 | D24: 97.99
A25: 20809 | B25: 退役安置 | C25: 94.71 | D25: =D26 -> 94.71
A26: 2080905 | B26: 军队转业干部安置 | C26: 94.71 | D26: 94.71
A27: 20899 | B27: 其他社会保障和就业支出 | C27: 191.93 | D27: =D28 -> 191.93
A28: 2089901 | B28: 其他社会保障和就业支出 | C28: 191.93 | D28: 191.93
A29: 210 | B29: 卫生健康支出 | C29: 883.69 | D29: =D30+D32 -> 883.69
A30: 21004 | B30: 公共卫生 | C30: 791.54 | D30: =D31 -> 791.54
A31: 2100410 | B31: 突发公共卫生事件应急处理 | C31: 791.54 | D31: 791.54
A32: 21011 | B32: 行政事业单位医疗 | C32: 92.15 | D32: =D33+D34+D35+D36 -> 92.15
A33: 2101101 | B33: 行政单位医疗 | C33: 36.83 | D33: 36.83
A34: 2101102 | B34: 事业单位医疗 | C34: 16.45 | D34: 16.45
A35: 2101103 | B35: 公务员医疗补助 | C35: 11.93 | D35: 11.93
A36: 2101199 | B36: 其他行政事业单位医疗支出 | C36: 26.94 | D36: 26.94
A37: 215 | B37: 资源勘探工业信息等支出 | C37: 22,243.15 | D37: =D38+D40+D42+D47+D50 -> 22,243.15
A38: 21501 | B38: 资源勘探开发 | C38: 354.87 | D38: =D39 -> 354.87
A39: 2150199 | B39: 其他资源勘探业支出 | C39: 354.87 | D39: 354.87
A40: 21502 | B40: 制造业 | C40: 2,395.00 | D40: =D41 -> 2,395.00
A41: 2150299 | B41: 其他制造业支出 | C41: =D41 -> 2,395.00 | D41: 2,395.00
A42: 21505 | B42: 工业和信息产业监管 | C42: 9,616.01 | D42: =D43+D44+D45+D46 -> 9,616.01
A43: 2150501 | B43: 行政运行 | C43: 965.58 | D43: 965.58
A44: 2150502 | B44: 一般行政管理事务 | C44: 259.24 | D44: 259.24
A45: 2150510 | B45: 工业和信息产业支持 | C45: 7,837.18 | D45: 7,837.18
A46: 2150599 | B46: 其他工业和信息产业监管支出 | C46: 554.01 | D46: 554.01
A47: 21508 | B47: 支持中小企业发展和管理支出 | C47: 8,173.84 | D47: =D48+D49 -> 8,173.84
A48: 2150805 | B48: 中小企业发展专项 | C48: 7,534.84 | D48: 7,534.84
A49: 2150899 | B49: 其他支持中小企业发展和管理支出 | C49: 639.00 | D49: 639.00
A50: 21599 | B50: 其他资源勘探工业信息等支出 | C50: 1,703.43 | D50: =D51 -> 1,703.43
A51: 2159999 | B51: 其他资源勘探工业信息等支出 | C51: 1,703.43 | D51: 1,703.43
A52: 217 | B52: 金融支出 | C52: 35.00 | D52: =D53 -> 35.00
A53: 21703 | B53: 金融发展支出 | C53: 35.00 | D53: =D54 -> 35.00
A54: 2170302 | B54: 利息费用补贴支出 | C54: 35.00 | D54: 35.00
A55: 219 | B55: 援助其他地区支出 | C55: 500.00 | D55: =D56 -> 500.00
A56: 21902 | B56: 教育 | C56: 500.00 | D56: =D57 -> 500.00
A57: 2190200 | B57: 教育 | C57: 500.00 | D57: 500.00
A58: 221 | B58: 住房保障支出 | C58: 82.49 | D58: =D59 -> 82.49
A59: 22102 | B59: 住房改革支出 | C59: 82.49 | D59: =D60 -> 82.49
A60: 2210201 | B60: 住房公积金 | C60: 82.49 | D60: 82.49
A61: 备注：本表反映部门本年度取得的各项收入情况。

Sheet 支出决算表
A1: 支出决算表
H2: 公开03表
A3: 公开部门：重庆市江津区经济和信息化委员会 | H3: 单位：万元
A4: 项目 | C4: 本年支出合计 | D4: 基本支出 | E4: 项目支出 | F4: 上缴上级支出 | G4: 经营支出 | H4: 对附属单位补助支出
A5: 功能分类科目编码 | B5: 项目(按“项”级功能分类科目)
A8: 合计 | C8: =C9+C12+C18+C29+C37+C53+C56+C59 -> 31149.55 | D8: =D9+D12+D18+D29+D37+D53+D56+D59 -> 1970.54 | E8: =E9+E12+E18+E29+E37+E53+E56+E59 -> 29179.01
A9: 205 | B9: 教育支出 | C9: =D9+E9 -> 5.42 | D9: =D10 -> 5.42
A10: 20508 | B10: 进修及培训 | C10: =D10+E10 -> 5.42 | D10: =D11 -> 5.42
A11: 2050803 | B11: 培训支出 | C11: 5.42 | D11: 5.42
A12: 206 | B12: 科学技术支出 | C12: 5253.06 | E12: =E13+E15 -> 5253.06
A13: 20603 | B13: 应用研究 | C13: 1100.00 | E13: =E14 -> 1100.00
A14: 2060399 | B14: 其他应用研究支出 | C14: 1100.00 | E14: 1100.00
A15: 20604 | B15: 技术研究与开发 | C15: 4153.06 | E15: =E16+E17 -> 4153.06
A16: 2060404 | B16: 科技成果转化与扩散 | C16: 1717.00 | E16: 1717.00
A17: 2060499 | B17: 其他技术研究与开发支出 | C17: 2436.06 | E17: 2436.06
A18: 208 | B18: 社会保障和就业支出 | C18: 643.28 | D18: =D19+D27 -> 445.40 | E18: =E23+E25+E27 -> 197.88
A19: 20805 | B19: 行政事业单位养老支出 | C19: 258.65 | D19: =D20+D21+D22 -> 258.65
A20: 2080505 | B20: 机关事业单位基本养老保险缴费支出 | C20: 84.57 | D20: 84.57
A21: 2080506 | B21: 机关事业单位职业年金缴费支出 | C21: 48.41 | D21: 48.41
A22: 2080599 | B22: 其他行政事业单位养老支出 | C22: 125.67 | D22: 125.67
A23: 20808 | B23: 抚恤 | C23: 97.99 | E23: =E24 -> 97.99
A24: 2080803 | B24: 在乡复员、退伍军人生活补助 | C24: 97.99 | E24: 97.99
A25: 20809 | B25: 退役安置 | C25: 94.71 | E25: =E26 -> 94.71
A26: 2080905 | B26: 军队转业干部安置 | C26: 94.71 | E26: 94.71
A27: 20899 | B27: 其他社会保障和就业支出 | C27: 191.93 | D27: =D28 -> 186.75 | E27: =E28 -> 5.18
A28: 2089901 | B28: 其他社会保障和就业支出 | C28: 191.93 | D28: 186.75 | E28: 5.18
A29: 210 | B29: 卫生健康支出 | C29: 883.69 | D29: =D32 -> 92.15 | E29: =E30 -> 791.54
A30: 21004 | B30: 公共卫生 | C30: 791.54 | E30: =E31 -> 791.54
A31: 2100410 | B31: 突发公共卫生事件应急处理 | C31: 791.54 | E31: 791.54
A32: 21011 | B32: 行政事业单位医疗 | C32: 92.15 | D32: =D33+D34+D35+D36 -> 92.15
A33: 2101101 | B33: 行政单位医疗 | C33: 36.83 | D33: 36.83
A34: 2101102 | B34: 事业单位医疗 | C34: 16.45 | D34: 16.45
A35: 2101103 | B35: 公务员医疗补助 | C35: 11.93 | D35: 11.93
A36: 2101199 | B36: 其他行政事业单位医疗支出 | C36: 26.94 | D36: 26.94
A37: 215 | B37: 资源勘探工业信息等支出 | C37: 23746.61 | D37: =D42 -> 1345.08 | E37: =E38+E40+E42+E47+E51 -> 22401.53
A38: 21501 | B38: 资源勘探开发 | C38: 354.87 | E38: =E39 -> 354.87
A39: 2150199 | B39: 其他资源勘探业支出 | C39: 354.87 | E39: 354.87
A40: 21502 | B40: 制造业 | C40: 2575.00 | E40: =E41 -> 2575.00
A41: 2150299 | B41: 其他制造业支出 | C41: 2575.00 | E41: 2575.00
A42: 21505 | B42: 工业和信息产业监管 | C42: =D42+E42 -> 9616.01 | D42: =D43+D46 -> 1345.08 | E42: =E44+E45+E46 -> 8270.93
A43: 2150501 | B43: 行政运行 | C43: 965.58 | D43: 965.58
A44: 2150502 | B44: 一般行政管理事务 | C44: 259.24 | E44: 259.24
A45: 2150510 | B45: 工业和信息产业支持 | C45: 7837.18 | E45: 7837.18
A46: 2150599 | B46: 其他工业和信息产业监管支出 | C46: 554.01 | D46: 379.50 | E46: 174.51
A47: 21508 | B47: 支持中小企业发展和管理支出 | C47: 9497.30 | E47: =E48+E49+E50 -> 9497.30
A48: 2150804 | B48: 科技型中小企业技术创新基金 | C48: 1500.00 | E48: 1500.00
A49: 2150805 | B49: 中小企业发展专项 | C49: 6758.30 | E49: 6758.30
A50: 2150899 | B50: 其他支持中小企业发展和管理支出 | C50: 1239.00 | E50: 1239.00
A51: 21599 | B51: 其他资源勘探工业信息等支出 | C51: 1703.43 | E51: =E52 -> 1703.43
A52: 2159999 | B52: 其他资源勘探工业信息等支出 | C52: 1703.43 | E52: 1703.43
A53: 217 | B53: 金融支出 | C53: 35.00 | E53: =E54 -> 35.00
A54: 21703 | B54: 金融发展支出 | C54: 35.00 | E54: =E55 -> 35.00
A55: 2170302 | B55: 利息费用补贴支出 | C55: 35.00 | E55: 35.00
A56: 219 | B56: 援助其他地区支出 | C56: 500.00 | E56: =E57 -> 500.00
A57: 21902 | B57: 教育 | C57: 500.00 | E57: =E58 -> 500.00
A58: 2190200 | B58: 教育 | C58: 500.00 | E58: 500.00
A59: 221 | B59: 住房保障支出 | C59: 82.49 | D59: =D60 -> 82.49
A60: 22102 | B60: 住房改革支出 | C60: 82.49 | D60: =D61 -> 82.49
A61: 2210201 | B61: 住房公积金 | C61: 82.49 | D61: 82.49
A62: 备注：本表反映部门本年度各项支出情况。

Sheet 财政拨款收入支出决算总表
A1: 财政拨款收入支出决算总表
F2: 公开04表
A3: 公开部门：重庆市江津区经济和信息化委员会 | F3: 单位：万元
A4: 收入 | C4: 支出
A5: 项 目 | B5: 决算数 | C5: 功能分类科目 | D5: 决算数
D6: 小计 | E6: 一般公共预算财政拨款 | F6: 政府性基金预算财政拨款 | G6: 国有资本经营预算财政拨款
A7: 一、一般公共预算财政拨款 | B7: 29,646.09 | C7: 一、一般公共服务支出
A8: 二、政府性基金预算财政拨款 | C8: 二、外交支出
A9: 三、国有资本经营预算财政拨款 | C9: 三、国防支出
C10: 四、公共安全支出
C11: 五、教育支出 | D11: 5.42 | E11: 5.42
C12: 六、科学技术支出 | D12: 5,253.06 | E12: 5,253.06
C13: 七、文化旅游体育与传媒支出
C14: 八、社会保障和就业支出 | D14: 643.27 | E14: 643.27
C15: 九、卫生健康支出 | D15: 883.70 | E15: 883.70
C16: 十、节能环保支出
C17: 十一、城乡社区支出
C18: 十二、农林水支出
C19: 十三、交通运输支出
C20: 十四、资源勘探信息等支出 | D20: 23,746.61 | E20: 23,746.61
C21: 十五、商业服务业等支出
C22: 十六、金融支出 | D22: 35.00 | E22: 35.00
C23: 十七、援助其他地区支出 | D23: 500.00 | E23: 500.00
C24: 十八、自然资源海洋气象等支出
C25: 十九、住房保障支出 | D25: 82.49 | E25: 82.49
C26: 二十、粮油物资储备支出
C27: 二十一、国有资本经营预算支出
C28: 二十二、灾害防治及应急管理支出
C29: 二十三、其他支出
C30: 二十四、债务还本支出
C31: 二十五、债务付息支出
C32: 二十六、抗疫特别国债安排的支出
A33: 本年收入合计 | B33: =B7 -> 29,646.09 | C33: 本年支出合计 | D33: =E33 -> 31,149.55 | E33: =SUM(E11:E25) -> 31,149.55
A34: 年初财政拨款结转和结余 | B34: 2,342.30 | C34: 年末财政拨款结转和结余 | D34: 838.84 | E34: 838.84
A35: 一、一般公共预算财政拨款 | B35: 2,342.30
A36: 二、政府性基金预算财政拨款
A37: 三、国有资本经营预算财政拨款
A38: 总计 | B38: =B34+B33 -> 31,988.39 | C38: 总计 | D38: 31,988.39 | E38: =E34+E33 -> 31,988.39
A39: 备注：本表反映部门本年度一般公共预算财政拨款、政府性基金财政拨款和国有资本经营预算财政拨款的总收支和年末结转结余情况。

Sheet 一般公共预算财政拨款收入支出决算表
A1: 一般公共预算财政拨款收入支出决算表
H2: 公开05表
A3: 公开部门：重庆市江津区经济和信息化委员会 | H3: 单位：万元
A4: 功能分类科目编码 | B4: 项目(按“项”级功能分类科目) | C4: 年初结转和结余 | D4: 本年收入 | E4: 本年支出 | H4: 年末结转和结余
E5: 合计 | F5: 基本支出 | G5: 项目支出
A6: 合 计 | C6: =C7+C10+C16+C27+C35+C51+C54+C57 -> 2,342.30 | D6: =D7+D10+D16+D27+D35+D51+D54+D57 -> 29,646.09 | E6: =F6+G6 -> 31,149.55 | F6: =F7+F10+F16+F27+F35+F51+F54+F57 -> 1,970.54 | G6: =G7+G10+G16+G27+G35+G51+G54+G57 -> 29,179.01 | H6: =H7+H10+H16+H27+H35+H51+H54+H57 -> 838.84
A7: 205 | B7: 教育支出 | D7: =D8 -> 5.42 | E7: =F7+G7 -> 5.42 | F7: =F8 -> 5.42
A8: 20508 | B8: 进修及培训 | D8: =D9 -> 5.42 | E8: 5.42 | F8: =F9 -> 5.42
A9: 2050803 | B9: 培训支出 | D9: 5.42 | E9: 5.42 | F9: 5.42
A10: 206 | B10: 科学技术支出 | D10: =D11+D13 -> 5,253.06 | E10: 5,253.06 | G10: =G11+G13 -> 5,253.06
A11: 20603 | B11: 应用研究 | D11: =D12 -> 1,100.00 | E11: 1,100.00 | G11: =G12 -> 1,100.00
A12: 2060399 | B12: 其他应用研究支出 | D12: 1,100.00 | E12: 1,100.00 | G12: 1,100.00
A13: 20604 | B13: 技术研究与开发 | D13: =D14+D15 -> 4,153.06 | E13: 4,153.06 | G13: =G14+G15 -> 4,153.06
A14: 2060404 | B14: 科技成果转化与扩散 | D14: 1,717.00 | E14: 1,717.00 | G14: 1,717.00
A15: 2060499 | B15: 其他技术研究与开发支出 | D15: 2,436.06 | E15: 2,436.06 | G15: 2,436.06
A16: 208 | B16: 社会保障和就业支出 | D16: =D17+D21+D23+D25 -> 643.28 | E16: 643.28 | F16: =F17+F21+F23+F25 -> 445.40 | G16: =G17+G21+G23+G25 -> 197.88
A17: 20805 | B17: 行政事业单位养老支出 | D17: =D18+D19+D20 -> 258.65 | E17: 258.65 | F17: =F18+F19+F20 -> 258.65
A18: 2080505 | B18: 机关事业单位基本养老保险缴费支出 | D18: 84.57 | E18: 84.57 | F18: 84.57
A19: 2080506 | B19: 机关事业单位职业年金缴费支出 | D19: 48.41 | E19: 48.41 | F19: 48.41
A20: 2080599 | B20: 其他行政事业单位养老支出 | D20: 125.67 | E20: 125.67 | F20: 125.67
A21: 20808 | B21: 抚恤 | D21: =D22 -> 97.99 | E21: 97.99 | G21: =G22 -> 97.99
A22: 2080803 | B22: 在乡复员、退伍军人生活补助 | D22: 97.99 | E22: 97.99 | G22: 97.99
A23: 20809 | B23: 退役安置 | D23: =D24 -> 94.71 | E23: 94.71 | G23: =G24 -> 94.71
A24: 2080905 | B24: 军队转业干部安置 | D24: 94.71 | E24: 94.71 | G24: 94.71
A25: 20899 | B25: 其他社会保障和就业支出 | D25: =D26 -> 191.93 | E25: 191.93 | F25: =F26 -> 186.75 | G25: =G26 -> 5.18
A26: 2089901 | B26: 其他社会保障和就业支出 | D26: 191.93 | E26: 191.93 | F26: 186.75 | G26: 5.18
A27: 210 | B27: 卫生健康支出 | D27: =D28+D30 -> 883.69 | E27: 883.69 | F27: =F28+F30 -> 92.15 | G27: =G28+G30 -> 791.54
A28: 21004 | B28: 公共卫生 | D28: =D29 -> 791.54 | E28: 791.54 | G28: =G29 -> 791.54
A29: 2100410 | B29: 突发公共卫生事件应急处理 | D29: 791.54 | E29: 791.54 | G29: 791.54
A30: 21011 | B30: 行政事业单位医疗 | D30: =D31+D32+D33+D34 -> 92.15 | E30: 92.15 | F30: =F31+F32+F33+F34 -> 92.15
A31: 2101101 | B31: 行政单位医疗 | D31: 36.83 | E31: 36.83 | F31: 36.83
A32: 2101102 | B32: 事业单位医疗 | D32: 16.45 | E32: 16.45 | F32: 16.45
A33: 2101103 | B33: 公务员医疗补助 | D33: 11.93 | E33: 11.93 | F33: 11.93
A34: 2101199 | B34: 其他行政事业单位医疗支出 | D34: 26.94 | E34: 26.94 | F34: 26.94
A35: 215 | B35: 资源勘探工业信息等支出 | C35: =C38+C45 -> 2,342.30 | D35: =D36+D38+D40+D45+D49 -> 22,243.15 | E35: 23,746.61 | F35: =F36+F38+F40+F45+F49 -> 1,345.08 | G35: =G36+G38+G40+G45+G49 -> 22,401.53 | H35: =H45 -> 838.84
A36: 21501 | B36: 资源勘探开发 | D36: =D37 -> 354.87 | E36: 354.87 | G36: =G37 -> 354.87
A37: 2150199 | B37: 其他资源勘探业支出 | D37: 354.87 | E37: 354.87 | G37: 354.87
A38: 21502 | B38: 制造业 | C38: =C39 -> 180.00 | D38: =D39 -> 2,395.00 | E38: 2,575.00 | G38: =G39 -> 2,575.00
A39: 2150299 | B39: 其他制造业支出 | C39: 180.00 | D39: 2,395.00 | E39: =F39+G39 -> 2,575.00 | G39: 2,575.00
A40: 21505 | B40: 工业和信息产业监管 | D40: =D41+D42+D43+D44 -> 9,616.01 | E40: 9,616.01 | F40: =F41+F44 -> 1,345.08 | G40: =G41+G42+G43+G44 -> 8,270.93
A41: 2150501 | B41: 行政运行 | D41: 965.58 | E41: 965.58 | F41: 965.58
A42: 2150502 | B42: 一般行政管理事务 | D42: 259.24 | E42: 259.24 | G42: 259.24
A43: 2150510 | B43: 工业和信息产业支持 | D43: 7,837.18 | E43: 7,837.18 | G43: 7,837.18
A44: 2150599 | B44: 其他工业和信息产业监管支出 | D44: 554.01 | E44: 554.01 | F44: 379.50 | G44: 174.51
A45: 21508 | B45: 支持中小企业发展和管理支出 | C45: =C46+C47+C48 -> 2,162.30 | D45: =D46+D47+D48 -> 8,173.84 | E45: 9,497.30 | G45: =G46+G47+G48 -> 9,497.30 | H45: =H47 -> 838.84
A46: 2150804 | B46: 科技型中小企业技术创新基金 | C46: 1,500.00 | E46: 1,500.00 | G46: 1,500.00
A47: 2150805 | B47: 中小企业发展专项 | C47: 62.30 | D47: 7,534.84 | E47: 6,758.30 | G47: 6,758.30 | H47: 838.84
A48: 2150899 | B48: 其他支持中小企业发展和管理支出 | C48: 600.00 | D48: 639.00 | E48: 1,239.00 | G48: 1,239.00
A49: 21599 | B49: 其他资源勘探工业信息等支出 | D49: =D50 -> 1,703.43 | E49: 1,703.43 | G49: =G50 -> 1,703.43
A50: 2159999 | B50: 其他资源勘探工业信息等支出 | D50: 1,703.43 | E50: 1,703.43 | G50: 1,703.43
A51: 217 | B51: 金融支出 | D51: =D52 -> 35.00 | E51: 35.00 | G51: =G52 -> 35.00
A52: 21703 | B52: 金融发展支出 | D52: =D53 -> 35.00 | E52: 35.00 | G52: =G53 -> 35.00
A53: 2170302 | B53: 利息费用补贴支出 | D53: 35.00 | E53: 35.00 | G53: 35.00
A54: 219 | B54: 援助其他地区支出 | D54: =D55 -> 500.00 | E54: 500.00 | G54: =G55 -> 500.00
A55: 21902 | B55: 教育 | D55: =D56 -> 500.00 | E55: 500.00 | G55: =G56 -> 500.00
A56: 2190200 | B56: 教育 | D56: 500.00 | E56: 500.00 | G56: 500.00
A57: 221 | B57: 住房保障支出 | D57: =D58 -> 82.49 | E57: 82.49 | F57: =F58 -> 82.49
A58: 22102 | B58: 住房改革支出 | D58: =D59 -> 82.49 | E58: 82.49 | F58: =F59 -> 82.49
A59: 2210201 | B59: 住房公积金 | D59: 82.49 | E59: 82.49 | F59: 82.49
A60: 备注：本表反映部门本年度一般公共预算财政拨款收支余情况。

Sheet 一般公共预算财政拨款基本支出决算表
A1: 一般公共预算财政拨款基本支出决算表
E2: 公开06表
A3: 公开部门：重庆市江津区经济和信息化委员会 | E3: 单位：万元
A4: 经济分类科目（按“款”级经济分类科目 | C4: 一般公共预算基本支出
A5: 科目编码 | B5: 科目名称 | C5: 合计 | D5: 人员经费 | E5: 公用经费
A6: 合计 | C6: =D6+E6 -> 1970.54 | D6: =D7+D39 -> 1668.29 | E6: =E21+E44 -> 302.25
A7: 301 | B7: 工资福利支出 | C7: =D7+E7 -> 1250.09 | D7: =SUM(D8:D20) -> 1250.09
A8: 30101 | B8: 基本工资 | C8: =D8+E8 -> 295.15 | D8: 295.15
A9: 30102 | B9: 津贴补贴 | C9: 142.41 | D9: 142.41
A10: 30103 | B10: 奖金 | C10: 156.27 | D10: 156.27
A11: 30106 | B11: 伙食补助费 | C11: 6.30 | D11: 6.30
A12: 30107 | B12: 绩效工资 | C12: 183.63 | D12: 183.63
A13: 30108 | B13: 机关事业单位基本养老保险费 | C13: 84.57 | D13: 84.57
A14: 30109 | B14: 职业年金缴费 | C14: 48.41 | D14: 48.41
A15: 30110 | B15: 职工基本医疗保险缴费 | C15: 53.28 | D15: 53.28
A16: 30111 | B16: 公务员医疗补助缴费 | C16: 11.93 | D16: 11.93
A17: 30112 | B17: 其他社会保障缴费 | C17: 4.77 | D17: 4.77
A18: 30113 | B18: 住房公积金 | C18: 132.53 | D18: 132.53
A19: 30114 | B19: 医疗费 | C19: 11.94 | D19: 11.94
A20: 30199 | B20: 其他工资福利支出 | C20: 118.90 | D20: 118.90
A21: 302 | B21: 商品和服务支出 | C21: 301.94 | E21: =SUM(E22:E38) -> 301.94
A22: 30201 | B22: 办公费 | C22: 32.50 | E22: 32.50
A23: 30205 | B23: 水费 | C23: 0.36 | E23: 0.36
A24: 30206 | B24: 电费 | C24: 5.95 | E24: 5.95
A25: 30207 | B25: 邮电费 | C25: 18.86 | E25: 18.86
A26: 30209 | B26: 物业管理费 | C26: 9.63 | E26: 9.63
A27: 30211 | B27: 差旅费 | C27: 38.43 | E27: 38.43
A28: 30213 | B28: 维修（护）费 | C28: 1.61 | E28: 1.61
A29: 30214 | B29: 租赁费 | C29: 6.03 | E29: 6.03
A30: 30215 | B30: 会议费 | C30: 0.44 | E30: 0.44
A31: 30216 | B31: 培训费 | C31: 4.09 | E31: 4.09
A32: 30226 | B32: 劳务费 | C32: 5.27 | E32: 5.27
A33: 30227 | B33: 委托业务费 | C33: 6.42 | E33: 6.42
A34: 30228 | B34: 工会经费 | C34: 22.00 | E34: 22.00
A35: 30229 | B35: 福利费 | C35: 16.12 | E35: 16.12
A36: 30231 | B36: 公务用车运行维护费 | C36: 7.39 | E36: 7.39
A37: 30239 | B37: 其他交通费用 | C37: 43.26 | E37: 43.26
A38: 30299 | B38: 其他商品和服务支出 | C38: 83.58 | E38: 83.58
A39: 303 | B39: 对个人和家庭的补助 | C39: 418.20 | D39: =SUM(D40:D43) -> 418.20
A40: 30304 | B40: 抚恤金 | C40: 59.41 | D40: 59.41
A41: 30305 | B41: 生活补助 | C41: 237.18 | D41: 237.18
A42: 30307 | B42: 医疗费补助 | C42: 33.64 | D42: 33.64
A43: 30399 | B43: 其他个人和家庭的补助支出 | C43: 87.97 | D43: 87.97
A44: 310 | B44: 资本性支出 | C44: 0.31 | E44: =E45 -> 0.31
A45: 31002 | B45: 办公设备购置 | C45: 0.31 | E45: 0.31
A46: 备注：本表反映部门本年度一般公共预算财政拨款基本支出明细情况。

Sheet 政府性基金预算财政拨款收入支出决算表
A1: 政府性基金预算财政拨款收入支出决算表
H2: 公开07表
A3: 公开部门：重庆市江津区经济和信息化委员会 | H3: 单位：万元
A4: 功能分类科目编码 | B4: 项目(按“项”级功能分类科目) | C4: 年初结转和结余 | D4: 本年收入 | E4: 本年支出 | H4: 年末结转和结余
E5: 合计 | F5: 基本支出 | G5: 项目支出
A6: 合计
A7: 208 | B7: 社会保障和就业支出
A8: 20822 | B8: 大中型水库移民后期扶持基金支出
A9: 2082201 | B9: 移民补助
A10: …… | B10: ……
A11: 212 | B11: 城乡社区支出
A12: 21207 | B12: 政府住房基金及对应专项债务收入安排的支出
A13: 2120702 | B13: 廉租住房支出
A14: …… | B14: ……
A15: 备注：本表反映部门本年度政府性基金预算财政拨款收入支出及结转结余情况。
A16: 本单位无政府性基金收入，也没有使用政府性基金安排的支出，故本表无数据。

Sheet 国有资本经营预算财政拨款支出决算表
A1: 国有资本经营预算财政拨款支出决算表
G2: 公开08表
A3: 公开部门：重庆市江津区经济和信息化委员会 | G3: 单位：万元
A4: 项 目 | B4: 项目 | C4: 项目 | D4: 项目 | E4: 本年支出 | F4: 本年支出 | G4: 本年支出
A5: 功能分类科目编码 | B5: 功能分类科目编码 | C5: 功能分类科目编码 | D5: 科目名称 | E5: 合计 | F5: 基本支出 | G5: 项目支出
A6: 功能分类科目编码 | B6: 功能分类科目编码 | C6: 功能分类科目编码 | D6: 科目名称 | E6: 合计 | F6: 基本支出 | G6: 项目支出
A7: 功能分类科目编码 | B7: 功能分类科目编码 | C7: 功能分类科目编码 | D7: 科目名称 | E7: 合计 | F7: 基本支出 | G7: 项目支出
A8: 合计 | B8: 合计 | C8: 合计 | D8: 合计
A10: 备注：本表反映部门本年度国有资本经营预算财政拨款支出情况。 | B10: 备注：本表反映部门本年度国有资本经营预算财政拨款支出情况。 | C10: 备注：本表反映部门本年度国有资本经营预算财政拨款支出情况。 | D10: 备注：本表反映部门本年度国有资本经营预算财政拨款支出情况。 | E10: 备注：本表反映部门本年度国有资本经营预算财政拨款支出情况。 | F10: 备注：本表反映部门本年度国有资本经营预算财政拨款支出情况。 | G10: 备注：本表反映部门本年度国有资本经营预算财政拨款支出情况。
A11: 本单位无国有资本经营预算财政拨款支出，故本表无数据。

Sheet 机构运行信息表
A1: 机构运行信息表
E2: 公开09表
A3: 公开部门：重庆市江津区经济和信息化委员会 | E3: 单位：万元
A4: 项 目 | B4: 预算数 | C4: 决算数 | D4: 项 目 | E4: 决算数
A5: 一、“三公”经费支出 | B5: — | C5: — | D5: 四、机关运行经费 | E5: =E6 -> 302.25
A6: （一）支出合计 | B6: =B8+B11 -> 33.00 | C6: =C8+C11 -> 11.32 | D6: （一）行政单位 | E6: 302.25
A7: 1．因公出国（境）费 | D7: （二）参照公务员法管理事业单位
A8: 2．公务用车购置及运行维护费 | B8: =B10 -> 8.00 | C8: =C10 -> 7.39 | D8: 五、国有资产占用情况 | E8: —
A9: （1）公务用车购置费 | D9: （一）车辆数合计（辆） | E9: 1
A10: （2）公务用车运行维护费 | B10: 8.00 | C10: 7.39 | D10: 1.副部（省）级及以上领导用车
A11: 3．公务接待费 | B11: 25.00 | C11: =C12 -> 3.93 | D11: 2.主要领导干部用车
A12: （1）国内接待费 | B12: 25.00 | C12: 3.93 | D12: 3.机要通信用车 | E12: 1
A13: 其中：外事接待费 | D13: 4.应急保障用车
A14: （2）国（境）外接待费 | D14: 5.执法执勤用车
A15: （二）相关统计数 | B15: — | D15: 6.特种专业技术用车
A16: 1．因公出国（境）团组数（个） | B16: — | D16: 7.离退休干部用车
A17: 2．因公出国（境）人次数（人） | B17: — | D17: 8.其他用车
A18: 3．公务用车购置数（辆） | B18: — | D18: （二）单价50万元（含）以上通用设备（台，套）
A19: 4．公务用车保有量（辆） | B19: — | C19: 1 | D19: （三）单价100万（含）元以上专用设备（台，套）
A20: 5．国内公务接待批次（个） | B20: — | C20: 40 | D20: 六、政府采购支出信息
A21: 其中：外事接待批次（个） | B21: — | D21: （一）政府采购支出合计 | E21: =E22+E24 -> 146.53
A22: 6．国内公务接待人次（人） | B22: — | C22: 394 | D22: 1．政府采购货物支出 | E22: 13.02
A23: 其中：外事接待人次（人） | B23: — | D23: 2．政府采购工程支出
A24: 7．国（境）外公务接待批次（个） | B24: — | D24: 3．政府采购服务支出 | E24: 133.51
A25: 8．国（境）外公务接待人次（人） | B25: — | D25: （二）政府采购授予中小企业合同金额 | E25: 111.08
A26: 二、会议费 | C26: 1.3 | D26: 其中：授予小微企业合同金额 | E26: 107.78
A27: 三、培训费 | C27: 58.58
A28: 备注：预算数年初部门预算批复数，决算数包括当年财政拨款预算和以前年度结转结余资金安排的实际支出。
